bitfinex-derivatives/quotes_ETHF0:USTF0_20250125
["timestamp","ask_amount","ask_price","bid_price","bid_amount"]
[1737769591989,0.00454496,3299.7,3299.3,0.48497]
[1737769592191,0.00454496,3299.7,3299.4,0.9965]
[1737769592384,0.48493,3299.6,3299.4,0.9965]
[1737769592581,0.48946496,3299.7,3299.4,0.9965]
[1737769592981,0.00454496,3299.7,3299.4,0.9965]
[1737769593290,0.485,3299.1,3299.0,3.21234496]
[1737769594791,0.5131,3299.4,3299.0,3.21234496]
[1737769594990,0.485,3299.2,3299.0,3.21234496]
[1737769595383,0.5131,3299.4,3299.0,3.21234496]
[1737769595577,0.485,3299.1,3299.0,3.21234496]
[1737769597484,0.5131,3299.4,3299.0,3.21234496]
[1737769597684,0.48499,3299.2,3299.0,3.21234496]
[1737769598087,0.48499,3299.2,3299.0,0.00454496]
[1737769598281,0.48496,3299.4,3299.0,0.00454496]
[1737769598486,3.21234496,3299.7,3299.0,0.00454496]
[1737769598887,0.48496,3299.4,3299.0,0.00454496]
[1737769599692,0.485,3299.2,3299.0,0.00454496]
[1737769599886,0.485,3299.1,3299.0,0.00454496]
[1737769601396,0.48515,3298.1,3298.0,3.2078]
[1737769601695,3.2078,3298.3,3297.6,4.2171]
[1737769602288,0.48519,3297.8,3297.6,4.2171]
[1737769602483,0.48519,3297.8,3297.6,4.22164496]
[1737769602886,0.00454496,3298.0,3297.6,4.22164496]
[1737769603197,0.00454496,3298.0,3297.8,0.48518]
[1737769603387,0.48512,3298.3,3297.7,2.33217462]
[1737769603388,3.2078,3298.8,3297.7,2.33217462]
[1737769603585,3.2078,3298.8,3298.1,3.2078]
[1737769603586,0.48512,3298.3,3298.1,3.2078]
[1737769604290,0.48513,3298.2,3298.1,3.2078]
[1737769604497,0.48512,3298.3,3298.1,3.2078]
[1737769607402,0.48964496,3298.5,3298.1,3.69294]
[1737769607599,0.48511,3298.4,3298.1,3.2078]
[1737769608397,0.48512,3298.3,3298.1,3.2078]
[1737769608603,0.00454496,3298.5,3298.1,3.2078]
[1737769608903,0.48513,3298.2,3298.1,3.2078]
[1737769609401,0.48513,3298.3,3298.1,3.2078]
[1737769610197,0.00454496,3298.5,3298.1,3.2078]
[1737769610399,0.48513,3298.2,3298.1,3.2078]
[1737769610791,0.00454496,3298.5,3298.1,3.2078]
[1737769610999,0.48513,3298.2,3298.1,3.2078]
[1737769611699,0.48512,3298.3,3298.1,3.2078]
[1737769611900,0.48963496,3298.5,3298.1,3.69294]
[1737769612506,0.00454496,3298.5,3298.1,3.2078]
[1737769612701,0.00454496,3298.5,3298.2,0.48512]
[1737769612902,0.00454496,3298.5,3298.1,3.2078]
[1737769613200,0.48963496,3298.5,3298.1,3.69294]
[1737769613403,0.00454496,3298.5,3298.1,3.2078]
[1737769613602,0.4851,3298.4,3298.1,3.2078]
[1737769614001,0.48511,3298.4,3298.1,3.2078]
[1737769614203,0.4851,3298.4,3298.1,3.2078]
[1737769614700,0.00454496,3298.5,3298.1,3.2078]
[1737769615206,0.4851,3298.4,3298.1,3.2078]
[1737769615409,0.48513,3298.3,3298.1,3.2078]
[1737769615607,0.00454496,3298.5,3298.1,3.69294]
[1737769615805,0.48511,3298.4,3298.1,3.2078]
[1737769616005,0.48511,3298.4,3298.1,3.69294]
[1737769616307,0.00454496,3298.5,3298.1,3.2078]
[1737769616500,0.48513,3298.3,3298.1,3.2078]
[1737769618207,0.48511,3298.4,3298.1,3.69295]
[1737769618405,0.48963496,3298.5,3298.2,0.99902]
[1737769618703,0.48963496,3298.5,3298.3,0.5003]
[1737769619102,0.48963496,3298.5,3298.4,0.4851]
[1737769619103,0.00454496,3298.5,3298.4,0.4851]
[1737769619304,0.00454496,3298.5,3298.3,1.5105]
[1737769619608,0.48964496,3298.5,3298.3,1.0254]
[1737769619809,0.00454496,3298.5,3298.3,1.0254]
[1737769620105,0.00454496,3298.5,3298.1,3.2078]
[1737769620308,0.48513,3298.2,3298.1,3.2078]
[1737769620807,0.48519,3297.8,3297.6,3.71264496]
[1737769621005,5.17343414,3298.2,3297.6,3.71264496]
[1737769621006,0.48521,3297.7,3297.6,3.71264496]
[1737769622998,4.98657414,3298.2,3297.6,3.71264496]
[1737769623209,0.48521,3297.7,3297.6,3.71264496]
[1737769623408,4.98657414,3298.2,3297.6,3.71264496]
[1737769623605,0.48521,3297.7,3297.6,3.71264496]
[1737769623817,0.48521,3297.7,3297.6,0.00454496]
[1737769628713,11.96183064,3298.3,3297.6,0.00454496]
[1737769628914,9.77403064,3298.3,3297.6,0.00454496]
[1737769629214,8.23063064,3298.3,3298.0,0.48515]
[1737769629416,8.23063064,3298.3,3298.1,0.5171]
[1737769629613,8.23063064,3298.3,3298.1,3.7249]
[1737769629812,8.23063064,3298.3,3298.2,0.99783]
[1737769630214,8.2351756,3298.5,3298.3,0.48511]
[1737769631315,8.2351756,3298.5,3298.4,0.4851]
[1737769633812,0.00454496,3298.5,3298.4,0.4851]
[1737769635117,0.00454496,3298.5,3298.4,0.9826]
[1737769636815,0.00454496,3298.5,3298.4,0.4975]
[1737769637819,0.00454496,3298.5,3298.4,0.9826]
[1737769638315,0.00454496,3298.5,3298.4,0.4975]
[1737769638523,0.48513,3298.2,3298.1,3.7249]
[1737769639619,0.00454496,3298.5,3298.1,3.7249]
[1737769639920,0.00454496,3298.5,3298.3,0.48511]
[1737769640921,0.00454496,3298.5,3298.4,0.4851]
[1737769641122,0.00454496,3298.5,3298.3,0.48511]
[1737769641324,0.00454496,3298.5,3298.2,1.0067]
[1737769642128,0.00454496,3298.5,3298.4,0.4851]
[1737769644814,0.00267765,3298.5,3298.4,0.4851]
[1737769649424,0.00267765,3298.5,3298.2,2.4347]
[1737769649626,0.00267765,3298.5,3298.4,0.4851]
[1737769655038,0.00267765,3298.5,3298.2,1.0067]
[1737769655233,0.48512,3298.4,3298.2,1.0067]
[1737769655433,0.48512,3298.4,3298.2,1.49183]
[1737769656839,0.48513,3298.2,3298.1,3.7249]
[1737769657142,0.48513,3298.2,3298.1,3.2078]
[1737769658935,0.48519,3297.9,3297.7,0.4968]
[1737769659332,0.48517,3298.0,3297.7,0.4968]
[1737769659536,0.9811,3298.2,3297.7,0.4968]
[1737769659733,0.48521,3297.7,3297.6,0.00454496]
[1737769665350,1.0,3297.9,3297.6,0.00454496]
[1737769665647,1.0,3297.9,3297.7,0.4852]
[1737769665845,1.0,3297.9,3297.6,0.50904496]
[1737769665846,1.0,3297.9,3297.6,1.49776496]
[1737769666746,1.0,3297.9,3297.8,0.48519]
[1737769667443,1.0,3297.9,3297.6,1.54114496]
[1737769667844,1.0,3297.9,3297.8,0.48519]
[1737769668349,0.5204,3298.6,3298.3,0.4851]
[1737769668539,0.5204,3298.6,3298.3,0.48511]
[1737769668738,1.00548,3298.6,3298.2,3.69292]
[1737769669038,0.5204,3298.6,3298.3,0.48512]
[1737769669244,0.5204,3298.6,3298.3,1.00072]
[1737769670052,0.5204,3298.6,3298.3,0.5156]
[1737769670252,0.5204,3298.6,3298.3,1.00072]
[1737769671154,0.98679,3299.2,3298.4,0.4851]
[1737769671351,1.5008,3299.2,3298.4,1.492]
[1737769671646,0.5018,3299.2,3298.4,1.492]
[1737769672551,0.486,3299.3,3298.4,1.492]
[1737769673056,0.48499,3299.2,3298.4,1.492]
[1737769673357,0.48501,3299.1,3298.4,1.492]
[1737769674657,0.485,3299.1,3298.4,1.492]
[1737769675858,0.48499,3299.2,3298.4,1.492]
[1737769676054,0.97098,3299.3,3298.4,1.492]
[1737769676654,0.486,3299.3,3298.4,1.492]
[1737769677561,3.84118191,3299.6,3298.4,1.492]
[1737769677562,2.84418191,3299.6,3298.4,1.492]
[1737769677754,2.84418191,3299.6,3298.4,1.0069]
[1737769677953,0.48494,3299.5,3299.2,0.48498]
[1737769678655,0.5067,3299.7,3299.1,0.5071]
[1737769678854,0.4775,3300.1,3299.7,0.48491]
[1737769679462,19.9886744,3300.0,3299.7,0.48491]
[1737769679660,19.9886744,3300.0,3299.4,3.21234496]
[1737769679857,19.9886744,3300.0,3299.8,0.48489]
[1737769680057,19.9886744,3300.0,3299.4,3.21234496]
[1737769680058,19.9886744,3300.0,3299.9,0.48488]
[1737769680364,19.9886744,3300.0,3299.8,0.48489]
[1737769680557,19.9886744,3300.0,3299.4,3.21234496]
[1737769680760,19.9886744,3300.0,3299.7,0.4849]
[1737769681157,0.48494,3299.6,3299.4,3.21234496]
[1737769681555,0.5056,3299.5,3299.4,3.21234496]
[1737769681864,5.91905481,3299.5,3299.4,0.00454496]
[1737769683666,5.43411481,3299.5,3298.5,0.5278]
[1737769683864,0.48501,3299.1,3298.6,0.48507]
[1737769684164,2.33268191,3299.2,3298.5,0.5278]
[1737769684463,2.33268191,3299.2,3298.8,0.48504]
[1737769684665,2.33268191,3299.2,3298.6,0.48506]
[1737769684867,0.48501,3299.1,3298.6,0.48506]
[1737769686360,0.98236,3299.4,3298.9,0.48502]
[1737769686662,3.99174155,3299.3,3298.9,0.48502]
[1737769686956,1.5026,3299.5,3298.8,3.2078]
[1737769687162,1.5026,3299.5,3299.2,0.48498]
[1737769687357,2.86058191,3299.8,3299.4,0.48494]
[1737769687564,0.997,3299.9,3299.5,0.96753]
[1737769687959,3.95099581,3299.8,3299.5,0.96753]
[1737769688355,0.997,3299.9,3299.5,0.4826]
[1737769688564,0.48488,3300.0,3299.5,0.4826]
[1737769688762,1.00154496,3300.1,3299.7,0.4849]
[1737769689060,1.48639496,3300.1,3299.6,4.21532]
[1737769689257,0.00454496,3300.1,3299.7,0.4849]
[1737769689657,0.00454496,3300.1,3299.6,4.73682]
[1737769689959,0.00454496,3300.1,3299.6,4.2519]
[1737769690162,0.48939496,3300.1,3299.6,4.73682]
[1737769690662,0.00454496,3300.1,3299.6,4.2519]
[1737769690863,0.00454496,3300.1,3300.0,0.48487]
[1737769691060,0.00454496,3300.1,3300.0,3.2078]
[1737769691658,0.00454496,3300.1,3300.0,3.69267]
[1737769692162,0.00454496,3300.1,3300.0,3.2078]
[1737769695959,0.00454496,3300.1,3300.0,3.69267]
[1737769697158,21.16447878,3301.1,3300.0,3.2078]
[1737769697358,21.16447878,3301.1,3300.4,3.2078]
[1737769697563,2.33268191,3301.0,3300.4,3.2078]
[1737769697758,0.48479,3300.5,3300.4,3.2078]
[1737769698663,0.48478,3300.6,3300.1,0.00454496]
[1737769698860,0.48481,3300.4,3300.1,0.00454496]
[1737769699457,0.48483,3300.3,3300.1,0.00454496]
[1737769699759,4.01722507,3300.6,3300.1,0.00454496]
[1737769699962,0.48484,3300.2,3300.1,0.00454496]
[1737769700467,0.48498,3299.2,3299.1,3.2078]
[1737769700667,2.33268191,3299.4,3299.1,3.2078]
[1737769700862,0.48498,3299.2,3299.1,3.2078]
[1737769701067,7.13542665,3299.3,3298.8,0.5584]
[1737769701268,7.13542665,3299.3,3298.7,0.5555]
[1737769701563,7.13542665,3299.3,3298.8,0.48504]
[1737769701977,3.92762665,3299.3,3298.8,0.48504]
[1737769702362,4.41259665,3299.3,3298.8,0.48504]
[1737769702866,0.48498,3299.2,3298.7,0.56004496]
[1737769703071,0.48498,3299.2,3298.7,1.04510496]
[1737769703269,4.41260665,3299.3,3298.7,1.04510496]
[1737769703570,3.92762665,3299.3,3298.7,1.04510496]
[1737769703780,0.48499,3299.2,3298.7,1.04510496]
[1737769704065,0.48499,3299.2,3298.7,0.56004496]
[1737769704269,0.485,3299.1,3298.7,0.56004496]
[1737769704471,0.48504,3298.9,3298.7,0.56004496]
[1737769704669,0.48498,3299.2,3298.7,0.56004496]
[1737769704970,3.92762665,3299.3,3298.7,0.56004496]
[1737769704971,0.48504,3298.9,3298.7,0.56004496]
[1737769705471,0.48502,3299.0,3298.7,0.56004496]
[1737769705671,0.48955496,3299.1,3298.7,0.56004496]
[1737769705873,0.48504,3298.8,3298.7,0.56004496]
[1737769706070,0.48504,3298.8,3298.7,0.00454496]
[1737769706966,7.67584151,3299.0,3298.7,0.00454496]
[1737769707275,0.48504,3298.9,3298.7,0.00454496]
[1737769707979,0.48504,3298.8,3298.7,0.00454496]
[1737769708174,8.16086151,3299.0,3298.7,0.00454496]
[1737769708672,3.93254151,3299.0,3298.7,0.00454496]
[1737769708875,2.33722687,3299.1,3298.7,0.00454496]
[1737769709275,0.48503,3298.9,3298.7,0.00454496]
[1737769710178,7.20699802,3299.0,3298.7,0.00454496]
[1737769710378,0.48504,3298.8,3298.7,0.00454496]
[1737769713082,7.20699802,3299.0,3298.7,0.00454496]
[1737769713483,0.48503,3298.9,3298.7,0.00454496]
[1737769713875,3.96727278,3298.8,3298.7,0.00454496]
[1737769714078,3.2078,3299.0,3298.7,0.00454496]
[1737769714577,3.2078,3299.0,3298.7,0.48960496]
[1737769714983,0.00454496,3299.1,3298.7,0.00454496]
[1737769715277,0.00454496,3299.1,3298.7,0.48960496]
[1737769715483,0.00454496,3299.1,3298.7,0.00454496]
[1737769715680,0.48955496,3299.1,3298.7,0.00454496]
[1737769715981,0.00454496,3299.1,3298.7,0.00454496]
[1737769716175,0.00454496,3299.1,3298.7,0.48959496]
[1737769716779,0.00454496,3299.1,3298.8,0.48504]
[1737769717383,0.00454496,3299.1,3298.7,0.00454496]
[1737769717578,1e-08,3299.1,3299.0,3.69281]
[1737769717983,1e-08,3299.1,3299.0,4.24591]
[1737769720581,1e-08,3299.1,3299.0,3.7609]
[1737769724081,1e-08,3299.1,3299.0,4.24591]
[1737769731181,1e-08,3299.1,3299.0,9.24591]
[1737769731382,1e-08,3299.1,3299.0,10.67391]
[1737769733380,1e-08,3299.1,3299.0,9.24591]
[1737769738791,0.5537,3300.2,3299.0,8.7609]
[1737769738990,0.5537,3300.2,3300.1,0.48485]
[1737769739991,0.00454496,3300.5,3299.8,1.6885]
[1737769740190,0.00454496,3300.5,3300.3,0.48481]
[1737769740386,0.48934496,3300.5,3300.3,0.48481]
[1737769740686,0.00454496,3300.5,3300.3,0.48482]
[1737769740892,0.00454496,3300.5,3300.4,0.48481]
[1737769742194,0.00454496,3300.5,3300.1,3.2078]
[1737769742391,0.48482,3300.4,3300.1,3.2078]
[1737769742591,0.48482,3300.4,3299.6,3.69272]
[1737769742592,0.48487,3300.0,3299.6,3.69272]
[1737769742792,0.48489,3299.9,3299.6,3.2078]
[1737769742992,0.48487,3300.0,3299.6,3.69272]
[1737769743797,2.33268191,3299.8,3299.6,3.2078]
[1737769744002,0.48491,3299.7,3299.6,3.2078]
[1737769744299,1.03311,3299.7,3299.6,3.2078]
[1737769747201,1.03311,3299.7,3299.1,0.485]
[1737769747393,0.5424,3299.6,3299.1,0.485]
[1737769747900,1.02733,3299.6,3299.1,0.485]
[1737769748203,0.48494,3299.5,3298.8,0.48504]
[1737769748501,1.02736,3299.4,3298.7,0.58034496]
[1737769748690,1.02736,3299.4,3298.8,0.48504]
[1737769748895,0.485,3299.1,3298.7,0.00454496]
[1737769749095,0.5625,3299.0,3298.7,0.00454496]
[1737769750798,0.5625,3299.0,3298.7,0.48960496]
[1737769751394,0.5625,3299.0,3298.7,0.00454496]
[1737769751595,0.5424,3299.4,3298.9,3.2078]
[1737769751795,0.5625,3299.5,3298.9,3.2078]
[1737769751998,0.5625,3299.5,3299.0,0.5573]
[1737769752199,0.996,3299.8,3299.6,0.48493]
[1737769752901,0.996,3299.8,3299.5,0.48493]
[1737769753101,0.996,3299.8,3299.3,3.2078]
[1737769753504,1.4809,3299.8,3299.4,0.48495]
[1737769753697,1.4809,3299.8,3299.3,3.2078]
[1737769753698,0.996,3299.8,3299.3,3.2078]
[1737769753893,1.4809,3299.8,3299.4,0.48495]
[1737769755304,0.996,3299.8,3299.5,0.48493]
[1737769755798,0.5346,3300.0,3299.3,3.2078]
[1737769756000,0.5346,3300.0,3299.9,0.48488]
[1737769756406,0.5346,3300.0,3299.8,0.48489]
[1737769757407,3.2078,3300.1,3299.4,2.33268191]
[1737769757599,3.2078,3300.1,3300.0,0.48487]
[1737769757795,0.5711,3300.3,3300.0,3.2078]
[1737769758001,0.5711,3300.3,3300.1,0.48485]
[1737769758611,0.5711,3300.3,3300.0,3.2078]
[1737769758906,0.5223,3300.4,3300.3,0.48482]
[1737769759410,0.00454496,3300.5,3300.4,0.48481]
[1737769760509,0.00454496,3300.5,3300.4,3.69261]
[1737769761501,0.00454496,3300.5,3300.4,4.21891]
[1737769761702,0.00454496,3300.5,3300.4,3.2078]
[1737769763004,0.48933496,3300.5,3300.4,3.2078]
[1737769763219,0.00454496,3300.5,3300.4,3.2078]
[1737769765309,0.48933496,3300.5,3300.4,3.2078]
[1737769766516,0.00454496,3300.5,3300.4,3.2078]
[1737769767802,0.48933496,3300.5,3300.4,3.2078]
[1737769768203,0.00454496,3300.5,3300.4,3.2078]
[1737769769918,0.00454496,3300.5,3300.1,0.5208]
[1737769770105,0.48482,3300.4,3300.1,0.5208]
[1737769770418,0.48482,3300.4,3299.3,0.48497]
[1737769770419,9.55977473,3300.4,3299.3,0.48497]
[1737769770715,0.48491,3299.7,3299.5,3.7427]
[1737769771317,0.48491,3299.8,3299.5,3.7427]
[1737769771716,0.48492,3299.7,3299.5,3.7427]
[1737769774121,0.48492,3299.7,3299.5,0.5349]
[1737769775925,0.4849,3299.8,3299.5,0.5349]
[1737769776717,0.4849,3299.8,3299.5,1.01984]
[1737769780015,0.5344,3299.9,3299.5,0.5349]
[1737769780220,0.48493,3299.6,3299.5,0.5349]
[1737769780515,0.5344,3299.9,3299.5,0.5349]
[1737769780724,0.48493,3299.6,3299.5,0.5349]
[1737769781223,0.48492,3299.7,3299.5,0.5349]
[1737769781621,0.5344,3299.9,3299.5,0.5349]
[1737769781827,0.48496,3299.4,3299.2,0.5104]
[1737769782022,2.33268191,3299.5,3299.1,3.2078]
[1737769782231,0.48498,3299.2,3299.1,3.2078]
[1737769783328,0.485,3299.1,3298.9,0.5396]
[1737769786327,0.5194,3299.3,3298.9,0.5396]
[1737769786516,0.48501,3299.0,3298.9,0.5396]
[1737769795231,0.485,3299.1,3298.9,0.5396]
[1737769796430,0.5194,3299.3,3298.7,3.21234496]
[1737769796630,0.48504,3298.8,3298.7,0.00454496]
[1737769797034,4.44873228,3298.8,3298.7,0.00454496]
[1737769803037,0.485,3299.2,3298.7,0.48959496]
[1737769803231,3.2078,3299.4,3298.7,0.48959496]
[1737769803544,0.485,3299.2,3298.8,0.5432]
[1737769803836,0.485,3299.2,3298.9,0.514]
[1737769804037,0.485,3299.2,3299.0,0.505]
[1737769805029,2.33268191,3299.2,3298.7,0.00454496]
[1737769805237,0.48521,3297.7,3297.5,3.2078]
[1737769805432,2.33268191,3298.0,3297.2,1.5711]
[1737769805833,0.48523,3297.6,3297.2,1.5711]
[1737769806332,3.88120516,3297.9,3297.2,1.5711]
[1737769806333,0.48525,3297.4,3297.2,1.5711]
[1737769806640,0.48523,3297.6,3297.2,1.5711]
[1737769806836,0.00454496,3297.7,3297.2,1.5711]
[1737769807241,0.48526,3297.4,3297.2,1.5711]
[1737769807739,0.00454496,3297.7,3297.2,1.5711]
[1737769808038,0.48523,3297.6,3297.2,1.5711]
[1737769808229,0.00454496,3297.7,3297.2,1.5711]
[1737769808429,0.00454496,3297.7,3297.5,3.2078]
[1737769809438,0.00454496,3297.7,3297.5,3.69303]
[1737769809642,0.00454496,3297.7,3297.5,3.2078]
[1737769810038,0.48522,3297.6,3297.2,1.5711]
[1737769810844,0.00454496,3297.7,3297.4,0.48524]
[1737769811141,0.00454496,3297.7,3297.2,1.5711]
[1737769811343,0.00454496,3297.7,3297.3,0.48526]
[1737769811644,0.00454496,3297.7,3297.4,0.48525]
[1737769811838,0.00454496,3297.7,3297.3,0.48526]
[1737769812034,0.00454496,3297.7,3297.2,1.5711]
[1737769812229,0.00454496,3297.7,3297.2,2.05637]
[1737769812638,0.00454496,3297.7,3297.5,3.2078]
[1737769813039,0.00454496,3297.7,3297.5,3.69303]
[1737769814439,0.00454496,3297.7,3297.6,0.48522]
[1737769832256,0.48502,3299.0,3298.7,0.48506]
[1737769832444,9.89144501,3299.1,3298.9,0.48503]
[1737769832945,9.40643501,3299.1,3298.9,0.48503]
[1737769833250,9.40643501,3299.1,3299.0,0.48501]
[1737769834758,0.00454496,3299.3,3299.2,0.48498]
[1737769835752,0.48501,3299.0,3298.9,0.50784496]
[1737769835953,0.48501,3299.0,3298.9,0.00454496]
[1737769837354,2.33268191,3299.2,3298.9,0.00454496]
[1737769837355,0.48501,3299.1,3298.9,3.21234496]
[1737769837541,2.33268191,3299.2,3298.9,3.21234496]
[1737769837747,1.00431,3299.0,3298.9,3.21234496]
[1737769838753,0.48508,3298.6,3298.5,3.2078]
[1737769839255,0.48508,3298.6,3298.3,0.48511]
[1737769842560,1.0335,3298.9,3298.2,0.4977]
[1737769842561,0.4969,3298.9,3298.2,0.4977]
[1737769842766,0.48503,3299.0,3298.7,0.48506]
[1737769843061,0.51774496,3299.3,3298.5,3.2078]
[1737769843258,2.81769191,3299.1,3298.7,0.48505]
[1737769845176,2.33268191,3299.1,3298.6,0.539]
[1737769845478,2.33268191,3299.1,3298.5,3.2078]
[1737769845479,0.48503,3298.9,3298.5,3.69288]
[1737769845877,0.48503,3299.0,3298.6,0.48507]
[1737769846576,2.81769191,3299.1,3298.7,0.48505]
[1737769847680,2.33268191,3299.1,3298.7,0.48505]
[1737769847883,0.48502,3299.0,3298.5,3.2078]
[1737769848082,0.48502,3299.0,3298.6,0.48506]
[1737769848683,2.33268191,3299.1,3298.5,3.2078]
[1737769848881,0.48501,3299.0,3298.5,3.69288]
[1737769849282,0.48501,3299.0,3298.5,3.2078]
[1737769849485,0.48501,3299.0,3298.6,0.48507]
[1737769849678,2.33268191,3299.1,3298.6,0.48507]
[1737769849874,0.48507,3298.6,3298.5,3.2078]
[1737769851080,0.5269,3298.7,3298.5,3.2078]
[1737769851583,2.33268191,3299.1,3298.5,3.2078]
[1737769851783,0.48503,3299.0,3298.6,1.52747]
[1737769851983,3.2078,3299.2,3298.6,1.0424]
[1737769852183,3.2078,3299.2,3298.9,0.48503]
[1737769852379,0.48501,3299.1,3298.7,0.48505]
[1737769853589,0.48499,3299.2,3298.8,0.97294]
[1737769853785,0.48498,3299.2,3298.8,0.97294]
[1737769855092,0.99954496,3299.3,3299.0,3.2078]
[1737769855392,0.00454496,3299.3,3299.2,0.48498]
[1737769856588,0.00454496,3299.3,3299.1,0.48499]
[1737769856788,0.00454496,3299.3,3299.2,0.9867]
[1737769857093,10.82408837,3300.3,3299.2,3.31938191]
[1737769857094,10.58223939,3300.3,3299.2,3.31938191]
[1737769857394,10.58223939,3300.3,3300.0,3.2078]
[1737769857895,11.06706939,3300.3,3300.0,3.2078]
[1737769858188,11.06706939,3300.3,3299.6,3.2078]
[1737769858394,11.06706939,3300.3,3299.8,0.48943496]
[1737769858790,3.2078,3300.1,3299.8,0.00454496]
[1737769858986,0.48488,3300.0,3299.8,0.00454496]
[1737769859694,9.40643501,3300.2,3299.8,0.00454496]
[1737769859996,9.40643501,3300.2,3300.0,0.48486]
[1737769860187,9.40643501,3300.2,3300.1,1.50265]
[1737769860386,9.40643501,3300.2,3300.1,2.01595]
[1737769862397,0.00454496,3300.4,3300.1,1.5311]
[1737769862596,0.00454496,3300.4,3300.3,0.48482]
[1737769863203,0.00454496,3300.4,3300.1,1.5311]
[1737769863391,0.48935496,3300.4,3300.1,2.01595]
[1737769865800,0.00454496,3300.4,3300.1,2.01595]
[1737769866996,0.00454496,3300.4,3300.2,0.48484]
[1737769867906,0.00454496,3300.4,3300.1,1.5311]
[1737769868104,0.00454496,3300.4,3300.3,0.48482]
[1737769871111,0.00454496,3300.4,3300.1,1.5311]
[1737769871305,0.00454496,3300.4,3300.2,0.48483]
[1737769871805,0.00454496,3300.4,3300.1,1.5311]
[1737769872010,0.00454496,3300.4,3300.1,2.01594]
[1737769872198,0.00454496,3300.4,3300.1,1.5311]
[1737769872507,0.00454496,3300.4,3300.2,0.48484]
[1737769877614,0.00454496,3300.4,3300.3,0.48482]
[1737769878714,0.00454496,3300.4,3300.1,3.86378191]
[1737769878719,0.4847,3301.2,3300.2,0.48484]
[1737769878922,0.4847,3301.2,3300.8,0.48474]
[1737769879113,0.48469,3301.3,3300.9,1.48303]
[1737769879514,3.2078,3301.4,3300.9,0.9983]
[1737769879715,0.4847,3301.2,3300.9,0.9983]
[1737769880322,0.48468,3301.3,3301.0,0.48472]
[1737769880617,3.69247,3301.4,3301.0,0.48472]
[1737769880817,3.2078,3301.4,3300.9,0.9983]
[1737769881015,0.48468,3301.3,3300.9,1.48303]
[1737769881212,0.48468,3301.3,3301.0,0.48472]
[1737769881815,0.48468,3301.3,3301.1,0.4789]
[1737769882911,0.48467,3301.4,3301.1,0.4789]
[1737769883112,0.48468,3301.3,3301.1,0.4789]
[1737769883923,0.00454496,3301.5,3301.1,0.4789]
[1737769884318,0.00454496,3301.5,3300.9,4.2061]
[1737769884526,0.48471,3301.1,3300.9,4.2061]
[1737769885022,0.48471,3301.1,3300.9,3.7177]
[1737769885921,0.48467,3301.4,3301.0,0.48471]
[1737769886117,0.48919496,3301.5,3301.2,0.48468]
[1737769886319,0.00454496,3301.5,3301.4,0.48466]
[1737769887727,0.00454496,3301.5,3301.3,3.7256]
[1737769888029,0.00454496,3301.5,3300.9,0.5099]
[1737769888030,3.88400353,3301.5,3300.9,3.7177]
[1737769888228,0.48472,3301.0,3300.9,3.2078]
[1737769890328,0.48479,3300.5,3300.4,0.5178]
[1737769891224,0.48478,3300.6,3300.4,0.5178]
[1737769891626,3.69253,3301.0,3300.5,0.48478]
[1737769891819,3.69253,3301.0,3300.5,0.98458]
[1737769892629,3.2078,3301.0,3300.5,0.98458]
[1737769892825,3.2078,3301.0,3300.5,0.4998]
[1737769892826,0.48476,3300.8,3300.5,0.4998]
[1737769895033,0.994,3301.2,3300.5,0.4998]
[1737769895235,0.48477,3300.7,3300.5,0.4998]
[1737769895434,2.33268191,3301.0,3300.5,0.4998]
[1737769895640,0.48478,3300.6,3300.5,0.4998]
[1737769895837,3.92774331,3300.9,3300.4,0.5178]
[1737769896033,0.48479,3300.5,3300.4,0.5178]
[1737769899737,0.48479,3300.5,3300.2,3.7127]
[1737769899738,3.2078,3300.5,3300.2,0.5049]
[1737769899944,0.48488,3299.9,3299.8,0.00454496]
[1737769902443,4.37915996,3299.9,3299.8,0.00454496]
[1737769905933,3.89427996,3299.9,3299.8,0.00454496]
[1737769907641,2.33268191,3300.6,3300.4,0.48481]
[1737769907943,4.2018,3301.1,3300.9,0.48473]
[1737769908147,0.994,3301.1,3300.3,3.2078]
[1737769908740,0.994,3301.1,3300.8,0.48474]
[1737769909743,2.81738191,3301.2,3300.8,0.48474]
[1737769910146,3.94354595,3301.1,3300.8,0.48474]
[1737769911841,4.42825595,3301.1,3300.9,1.0121]
[1737769912036,3.94354595,3301.1,3300.9,1.0121]
[1737769912342,3.21234496,3301.5,3300.9,1.0121]
[1737769912547,0.00454496,3301.5,3301.4,0.48466]
[1737769920451,0.00454496,3301.5,3301.3,0.48466]
[1737769921455,0.00454496,3301.5,3301.4,0.48466]
[1737769922051,10.58223939,3302.3,3301.4,2.33268191]
[1737769922351,6.02500191,3302.4,3301.9,0.48458]
[1737769922555,6.02500191,3302.4,3301.6,3.2078]
[1737769922556,3.2078,3302.4,3302.0,0.5039]
[1737769923253,3.2078,3302.4,3302.3,0.48453]
[1737769924455,3.2078,3302.4,3302.2,0.48454]
[1737769925250,3.2078,3302.4,3302.3,0.488]
[1737769926160,0.00454496,3302.5,3302.3,0.488]
[1737769926550,0.00454496,3302.5,3302.3,0.97252]
[1737769926749,0.00454496,3302.5,3302.4,0.48451]
[1737769927251,9.40643501,3303.0,3302.4,0.4888]
[1737769927557,9.40643501,3303.0,3302.9,0.48444]
[1737769928558,9.40643501,3303.0,3302.8,0.48445]
[1737769929352,9.40643501,3303.0,3302.7,0.4966]
[1737769929553,0.48445,3302.9,3302.7,0.4966]
[1737769929755,0.48446,3302.8,3302.7,0.4966]
[1737769930660,0.48442,3303.1,3302.7,1.50196]
[1737769930959,2.82008575,3303.3,3302.8,0.48444]
[1737769931147,2.82008575,3303.3,3302.9,0.48444]
[1737769931658,0.4844,3303.2,3302.8,0.48445]
[1737769931857,0.48441,3303.1,3302.7,1.50197]
[1737769932055,2.33569575,3303.3,3302.7,1.0175]
[1737769932251,0.48444,3303.0,3302.7,1.0175]
[1737769932451,4.48701771,3303.2,3302.7,1.0175]